bitfinex/quotes_SOLUSD_20250704
["timestamp","ask_amount","ask_price","bid_price","bid_amount"]
[1751641822052,26.69345178,147.85,147.84,0.1]
[1751641822453,35.06026354,147.85,147.84,0.1]
[1751641822676,42.42752225,147.85,147.84,1e-08]
[1751641822975,50.84040092,147.85,147.84,1e-08]
[1751641825053,50.84040092,147.85,147.81,0.1]
[1751641825054,44.64964886,147.82,147.81,0.1]
[1751641825254,52.01690757,147.82,147.81,1e-08]
[1751641825484,52.69345178,147.82,147.81,1e-08]
[1751641825682,44.64964886,147.79,147.78,0.1]
[1751641825860,52.69345178,147.79,147.78,0.1]
[1751641826787,59.45980944,147.79,147.78,0.1]
[1751641827306,52.09255073,147.79,147.78,0.1]
[1751641827596,59.45980944,147.79,147.78,0.1]
[1751641827963,45.32619307,147.79,147.78,0.1]
[1751641828164,18.64964886,147.79,147.78,14.23407424]
[1751641828393,6.20060156,147.83,147.78,6.86681553]
[1751641828688,8.01654421,147.87,147.82,7.36725871]
[1751641828890,8.01654421,147.87,147.78,17.01703884]
[1751641829077,8.01654421,147.87,147.84,7.36725871]
[1751641829273,34.01654421,147.87,147.84,7.36725871]
[1751641829486,40.77933477,147.87,147.84,7.36725871]
[1751641829875,18.64964886,147.86,147.84,12.69283407]
[1751641830190,18.64964886,147.86,147.83,12.69283407]
[1751641830801,18.64964886,147.86,147.84,12.69283407]
[1751641831892,18.64964886,147.86,147.85,12.69283407]
[1751641832066,18.64964886,147.88,147.85,12.69283407]
[1751641832268,18.64964886,147.88,147.83,6.76444031]
[1751641832490,18.64964886,147.88,147.86,12.69283407]
[1751641832808,18.64964886,147.9,147.87,12.69283407]
[1751641832962,18.64964886,147.9,147.89,12.69283407]
[1751641833166,18.64964886,147.92,147.89,12.69283407]
[1751641833382,18.64964886,147.92,147.88,6.76223965]
[1751641833383,31.34248293,147.92,147.88,12.69283407]
[1751641833698,18.64964886,147.92,147.88,12.69283407]
[1751641833994,18.64964886,147.92,147.89,12.69283407]
[1751641835387,18.64964886,147.92,147.89,12.69283407]
[1751641835572,25.41017442,147.92,147.89,12.69283407]
[1751641836019,18.64964886,147.92,147.89,12.69283407]
[1751641836195,18.64964886,147.92,147.9,12.69283407]
[1751641837402,18.64964886,147.92,147.91,12.69283407]
[1751641837700,18.64964886,147.97,147.91,12.69283407]
[1751641838005,18.64964886,147.98,147.95,12.69283407]
[1751641838298,18.64964886,147.98,147.9,23.66462166]
[1751641838495,31.34248293,147.98,147.9,23.66462166]
[1751641838703,18.64964886,147.98,147.94,12.69283407]
[1751641839082,25.40760887,147.98,147.94,12.69283407]
[1751641839281,13.36937828,147.97,147.89,6.2248]
[1751641839491,0.67654421,147.97,147.93,12.69283407]
[1751641839689,26.08415308,147.98,147.93,12.69283407]
[1751641839911,38.77698715,147.98,147.93,12.69283407]
[1751641840405,12.69283407,147.97,147.93,12.69283407]
[1751641840796,18.64964886,147.95,147.92,12.69283407]
[1751641841102,0.67654421,147.94,147.9,12.69283407]
[1751641841404,13.36937828,147.94,147.9,12.69283407]
[1751641842010,0.67654421,147.94,147.91,12.69283407]
[1751641842214,0.67654421,147.94,147.89,6.2248]
[1751641842215,31.34248293,147.93,147.89,12.69283407]
[1751641842411,18.64964886,147.91,147.89,12.69283407]
[1751641842612,18.64964886,147.91,147.88,12.69283407]
[1751641842780,31.34248293,147.91,147.87,12.69283407]
[1751641843108,18.64964886,147.92,147.89,12.69283407]
[1751641843407,19.32619307,147.92,147.89,12.69283407]
[1751641843620,19.32619307,147.92,147.91,12.69283407]
[1751641843621,18.64964886,147.92,147.91,12.69283407]
[1751641843821,18.64964886,147.92,147.85,26.0]
[1751641844120,18.64964886,147.92,147.9,12.69283407]
[1751641844421,26.08702849,147.92,147.89,12.69283407]
[1751641844627,26.08702849,147.92,147.85,91.06325606]
[1751641844628,26.08702849,147.92,147.88,12.69283407]
[1751641844982,12.69283407,147.91,147.85,58.3]
[1751641845179,64.77986256,147.92,147.87,12.69283407]
[1751641845612,12.69283407,147.91,147.86,12.69283407]
[1751641845789,18.64964886,147.89,147.86,12.69283407]
[1751641845986,18.64964886,147.89,147.85,12.69283407]
[1751641846695,6.76223965,147.88,147.85,12.69283407]
[1751641846913,19.32619307,147.87,147.79,7.9093]
[1751641847090,18.64964886,147.87,147.84,12.69283407]
[1751641848216,13.36937828,147.86,147.82,12.69283407]
[1751641849211,18.64964886,147.84,147.82,12.69283407]
[1751641850305,6.7628635,147.87,147.83,12.69283407]
[1751641850505,18.64964886,147.88,147.85,12.69283407]
[1751641851222,25.41206117,147.88,147.85,12.69283407]
[1751641851426,25.41206117,147.88,147.86,12.69283407]
[1751641851886,25.41206117,147.88,147.85,12.69283407]
[1751641854333,18.64964886,147.88,147.86,12.69283407]
[1751641854812,25.41192652,147.88,147.84,58.3]
[1751641855020,25.41192652,147.88,147.86,12.69283407]
[1751641857219,18.64964886,147.88,147.86,12.69283407]
[1751641857690,25.41197892,147.88,147.86,12.69283407]
[1751641857896,25.41197892,147.88,147.86,7.40205058]
[1751641858503,25.41197892,147.88,147.85,7.40205058]
[1751641859217,25.41197892,147.88,147.84,58.3]
[1751641859519,7.40205058,147.87,147.84,58.3]
[1751641860360,26.08852313,147.88,147.84,58.3]
[1751641860529,18.64964886,147.87,147.84,58.3]
[1751641860695,18.64964886,147.87,147.83,7.40205058]
[1751641861005,18.64964886,147.87,147.84,7.40205058]
[1751641861922,6.76315433,147.86,147.83,7.40205058]
[1751641862827,6.76315433,147.86,147.81,6.76526298]
[1751641862828,18.64964886,147.84,147.81,58.3]
[1751641863122,18.64964886,147.84,147.81,7.40205058]
[1751641863494,25.41280319,147.86,147.83,7.40205058]
[1751641863894,33.49139798,147.86,147.82,7.40205058]
[1751641864132,6.76315433,147.86,147.82,7.40205058]
[1751641864339,6.76315433,147.86,147.83,7.40205058]
[1751641865036,40.16416068,147.89,147.85,7.40205058]
[1751641865239,18.64964886,147.87,147.85,7.40205058]
[1751641866341,25.41237111,147.87,147.85,7.40205058]
[1751641866730,25.41237111,147.87,147.84,7.40205058]
[1751641867535,25.41237111,147.87,147.79,7.40205058]
[1751641867536,18.64964886,147.84,147.79,7.40205058]
[1751641867869,18.64964886,147.82,147.79,7.40205058]
[1751641868236,6.76499919,147.82,147.79,7.40205058]
[1751641868621,18.64964886,147.81,147.78,65.80205058]
[1751641868825,18.64964886,147.81,147.78,0.1]
[1751641869031,18.64964886,147.81,147.78,7.50205058]
[1751641869227,18.64964886,147.82,147.79,7.40205058]
[1751641869745,26.05169944,147.82,147.78,7.50205058]
[1751641870247,6.76544212,147.81,147.78,7.50205058]
[1751641870733,25.414802,147.82,147.79,7.40205058]
[1751641871619,25.414802,147.82,147.8,7.40205058]
[1751641872040,26.05169944,147.84,147.8,7.40205058]
[1751641872241,26.05169944,147.84,147.81,7.40205058]
[1751641872242,18.64964886,147.84,147.81,7.40205058]
[1751641873039,18.64964886,147.84,147.82,7.40205058]
[1751641873830,26.0,147.85,147.83,7.40205058]
[1751641874224,20.31034886,147.86,147.83,7.40205058]
[1751641874421,0.67654421,147.89,147.85,7.40205058]
[1751641874647,6.76149182,147.9,147.88,7.40205058]
[1751641874952,44.64964886,147.89,147.84,58.3]
[1751641875151,44.64964886,147.89,147.84,7.40205058]
[1751641875152,52.72824365,147.89,147.84,7.40205058]
[1751641875535,7.40205058,147.88,147.84,7.40205058]
[1751641875735,18.64964886,147.86,147.84,7.40205058]
[1751641876060,25.41198013,147.88,147.85,7.40205058]
[1751641876356,0.67654421,147.87,147.83,7.40205058]
[1751641877138,0.67654421,147.87,147.84,7.40205058]
[1751641878855,18.64964886,147.85,147.84,7.40205058]
[1751641879450,18.64964886,147.85,147.81,6.76524405]
[1751641879451,18.64964886,147.85,147.83,7.40205058]
[1751641880136,18.64964886,147.85,147.84,7.40205058]
[1751641881438,18.64964886,147.86,147.84,7.40205058]
[1751641882246,26.08863793,147.88,147.85,7.40205058]
[1751641882948,26.08863793,147.88,147.86,7.40205058]
[1751641883351,26.08863793,147.88,147.83,6.76448496]
[1751641883569,26.08863793,147.88,147.85,7.40205058]
[1751641883767,26.08863793,147.88,147.82,6.76480992]
[1751641883948,33.49068851,147.88,147.84,7.40205058]
[1751641884771,26.08863793,147.88,147.82,6.7647758]
[1751641885067,33.49068851,147.88,147.84,7.40205058]
[1751641885643,26.08863793,147.88,147.84,7.40205058]
[1751641885845,26.05169944,147.87,147.83,7.40205058]
[1751641887246,6.76315433,147.86,147.83,7.40205058]
[1751641887463,14.84174912,147.86,147.81,65.70205058]
[1751641887668,14.84174912,147.86,147.81,7.40205058]
[1751641887880,14.84174912,147.86,147.82,7.40205058]
[1751641888245,7.40205058,147.84,147.79,58.3]
[1751641888476,26.05169944,147.83,147.78,65.80205058]
[1751641888646,26.05169944,147.83,147.78,7.50205058]
[1751641889465,18.64964886,147.83,147.8,7.40205058]
[1751641889643,25.41433915,147.83,147.8,7.40205058]
[1751641890652,25.41433915,147.83,147.79,7.40205058]
[1751641890982,25.41433915,147.83,147.8,7.40205058]
[1751641891353,18.64964886,147.83,147.8,7.40205058]
[1751641891571,18.64964886,147.85,147.82,7.40205058]
[1751641891776,27.03900013,147.87,147.84,7.40205058]
[1751641893057,18.64964886,147.86,147.84,7.40205058]
[1751641893252,18.64964886,147.86,147.8,58.3]
[1751641893467,18.64964886,147.86,147.83,7.40205058]
[1751641893778,18.64964886,147.86,147.84,7.40205058]
[1751641895060,25.41290763,147.86,147.84,7.40205058]
[1751641895263,25.41290763,147.86,147.83,7.40205058]
[1751641897376,18.64964886,147.86,147.84,7.40205058]
[1751641899455,18.64964886,147.86,147.82,6.76498444]
[1751641899456,33.43904976,147.88,147.85,7.40205058]
[1751641899678,18.64964886,147.87,147.85,7.40205058]
[1751641900183,18.64964886,147.87,147.86,7.40205058]
[1751641900590,18.64964886,147.87,147.83,65.06427347]
[1751641900778,1.5354,147.9,147.86,7.40205058]
[1751641900987,6.76113173,147.91,147.88,7.40205058]
[1751641901186,18.84964886,147.92,147.9,7.40205058]
[1751641901391,44.84964886,147.92,147.9,7.40205058]
[1751641901700,18.84964886,147.92,147.9,7.40205058]
[1751641901885,44.64964886,147.91,147.9,7.40205058]
[1751641902991,44.64964886,147.91,147.89,7.40205058]
[1751641903577,51.41052138,147.91,147.89,7.40205058]
[1751641904874,44.64964886,147.91,147.89,7.40205058]
[1751641905519,0.2,147.92,147.9,7.40205058]
[1751641905811,0.2,147.92,147.91,7.40205058]
[1751641905973,0.2,147.92,147.9,7.40205058]
[1751641906175,0.2,147.92,147.87,65.06250572]
[1751641906391,0.2,147.92,147.9,7.40205058]
[1751641906598,6.96049899,147.92,147.89,7.40205058]
[1751641907172,0.2,147.92,147.91,7.40205058]
[1751641907606,0.2,147.92,147.89,6.76151901]
[1751641907779,0.2,147.92,147.9,7.40205058]
[1751641912615,0.2,147.92,147.89,7.40205058]
[1751641913883,0.2,147.92,147.9,7.40205058]
[1751641914804,0.2,147.92,147.89,7.40205058]
[1751641915508,44.64964886,147.89,147.84,58.3]
[1751641915681,44.64964886,147.89,147.81,65.70205058]
[1751641915682,26.05169944,147.85,147.81,65.70205058]
[1751641916007,26.05169944,147.85,147.8,6.76570134]
[1751641916008,18.64964886,147.83,147.8,7.40205058]
[1751641916206,26.05169944,147.81,147.78,0.1]
[1751641916599,26.05169944,147.82,147.78,0.1]
[1751641916786,6.76544212,147.81,147.78,0.1]
[1751641917293,33.49339869,147.82,147.78,0.1]
[1751641918410,7.40205058,147.79,147.78,0.1]
[1751641918594,45.32619307,147.8,147.78,0.1]
[1751641918796,59.49435346,147.8,147.78,0.1]
[1751641919104,7.40205058,147.79,147.78,0.1]
[1751641921022,14.16840824,147.79,147.78,0.1]
[1751641921791,6.76635766,147.79,147.78,0.1]
[1751641922017,44.64964886,147.79,147.78,0.1]
[1751641923816,1.5367,147.81,147.78,7.50205058]
[1751641923986,18.64964886,147.82,147.78,14.26883828]
[1751641924191,7.3,147.84,147.81,7.40205058]
[1751641924386,6.76345896,147.86,147.82,7.40205058]
[1751641924593,14.84205375,147.86,147.82,7.40205058]
[1751641924891,26.0,147.83,147.81,7.40205058]
[1751641925088,18.64964886,147.82,147.79,6.765989]
[1751641925294,18.64964886,147.82,147.8,7.40205058]
[1751641926119,18.64964886,147.82,147.79,7.40205058]
[1751641928424,26.0,147.84,147.81,7.40205058]
[1751641928632,8.07859479,147.88,147.83,7.40205058]
[1751641928805,18.64964886,147.87,147.84,7.40205058]
[1751641929536,44.64964886,147.87,147.86,7.40205058]
[1751641929834,18.64964886,147.89,147.86,7.40205058]
[1751641930011,18.64964886,147.89,147.88,7.40205058]
[1751641930206,0.2,147.92,147.88,7.40205058]
[1751641930401,0.2,147.92,147.89,7.40205058]
[1751641930807,44.64964886,147.91,147.9,7.40205058]
[1751641931130,44.64964886,147.91,147.89,7.40205058]
[1751641931832,44.64964886,147.91,147.89,19.44415428]
[1751641932028,18.64964886,147.9,147.89,12.68244373]
[1751641932328,18.84964886,147.92,147.88,12.68244373]
[1751641933529,25.61011328,147.92,147.88,12.68244373]
[1751641933714,38.29255701,147.92,147.87,12.68244373]
[1751641934028,25.61011328,147.92,147.87,12.68244373]
[1751641934528,18.64964886,147.88,147.83,6.76452682]
[1751641934733,18.64964886,147.88,147.85,12.68244373]
[1751641935110,18.64964886,147.88,147.86,12.68244373]
[1751641935412,18.64964886,147.88,147.85,12.68244373]
[1751641935721,18.64964886,147.88,147.86,19.44559806]
[1751641936816,18.64964886,147.88,147.86,6.76315433]
[1751641937022,26.0,147.89,147.87,12.68244373]
[1751641937231,26.0,147.91,147.88,12.68244373]
[1751641937538,26.0,147.91,147.89,12.68244373]
[1751641937539,18.64964886,147.9,147.89,12.68244373]
[1751641937706,18.64964886,147.9,147.86,6.76315433]
[1751641937707,18.64964886,147.9,147.88,12.68244373]
[1751641937907,18.64964886,147.9,147.83,75.21125405]
[1751641937908,18.64964886,147.9,147.84,6.76406926]
[1751641938130,18.64964886,147.9,147.87,12.68244373]
[1751641938409,18.64964886,147.9,147.88,12.68244373]
[1751641940912,18.64964886,147.9,147.87,12.68244373]
[1751641941230,18.64964886,147.9,147.86,12.68244373]
[1751641941434,18.64964886,147.9,147.87,12.68244373]
[1751641941818,18.64964886,147.9,147.88,12.68244373]
[1751641942842,18.64964886,147.9,147.86,6.76282251]
[1751641943017,18.64964886,147.9,147.87,12.68244373]
[1751641943612,25.41101455,147.9,147.87,12.68244373]
[1751641944014,18.64964886,147.9,147.87,12.68244373]
[1751641944326,18.64964886,147.9,147.87,19.4451394]
[1751641944520,18.64964886,147.9,147.88,12.68244373]
[1751641944737,0.2,147.92,147.89,12.68244373]
[1751641946423,6.96045027,147.92,147.88,12.68244373]
[1751641946616,6.96045027,147.92,147.87,6.76269696]
[1751641946617,0.2,147.92,147.89,12.68244373]
[1751641947831,0.2,147.92,147.87,6.76269696]
[1751641948033,0.2,147.92,147.88,12.68244373]
[1751641948347,12.88244373,147.92,147.88,12.68244373]
[1751641948647,0.2,147.92,147.89,12.68244373]
[1751641948839,0.2,147.92,147.87,6.76269696]
[1751641949147,0.2,147.92,147.88,12.68244373]
[1751641949324,0.2,147.92,147.88,70.98244373]
[1751641949645,0.2,147.92,147.89,12.68244373]
[1751641950019,0.2,147.92,147.89,19.44417778]
[1751641950223,20.31952623,147.92,147.88,70.98244373]
[1751641950548,0.2,147.92,147.88,77.74456397]
[1751641950743,0.2,147.92,147.89,12.68244373]
[1751641952038,0.2,147.92,147.9,19.44372845]
[1751641952554,0.2,147.92,147.91,12.68244373]
[1751641953446,0.2,147.92,147.9,12.68244373]
[1751641953741,0.2,147.92,147.88,65.06206336]
[1751641953924,0.2,147.92,147.9,7.39787966]
[1751641954740,0.2,147.92,147.91,7.39787966]
[1751641957422,0.2,147.92,147.91,14.15874775]
[1751641959637,0.2,147.92,147.91,7.39787966]
[1751641960253,0.2,147.92,147.9,7.39787966]
[1751641960757,0.2,147.92,147.9,14.15918815]
[1751641961457,0.2,147.92,147.91,7.39787966]
[1751641961638,0.2,147.92,147.91,14.15874775]
[1751641962442,0.2,147.92,147.9,14.15918057]
[1751641963360,0.2,147.92,147.9,6.76130091]
[1751641963548,18.84964886,147.92,147.89,48.95945782]
[1751641963747,33.0080233,147.92,147.88,58.3]
[1751641963960,33.0080233,147.92,147.87,7.39787966]
[1751641963961,18.64964886,147.9,147.86,7.39787966]
[1751641964138,7.39787966,147.88,147.83,6.0651]
[1751641964345,7.39787966,147.88,147.82,7.39787966]
[1751641964346,26.04752852,147.86,147.82,7.39787966]
[1751641964553,18.64964886,147.86,147.81,7.39787966]
[1751641964869,7.39787966,147.83,147.78,8.9012]
[1751641965166,26.04752852,147.85,147.8,7.39787966]
[1751641965544,7.39787966,147.84,147.8,7.39787966]
[1751641965761,32.81132225,147.85,147.8,7.39787966]
[1751641966464,26.0,147.85,147.83,7.39787966]
[1751641966641,18.64964886,147.86,147.8,6.76575736]
[1751641966843,26.0,147.84,147.82,7.39787966]
[1751641968354,26.0,147.84,147.82,14.1628303]
[1751641968763,26.0,147.84,147.83,7.39787966]
[1751641968973,26.0,147.86,147.83,7.39787966]
[1751641969264,26.04752852,147.88,147.84,7.39787966]
[1751641969568,52.04752852,147.88,147.84,7.39787966]
[1751641970274,44.64964886,147.88,147.84,6.76392035]
[1751641970502,26.0,147.86,147.85,7.39787966]
[1751641972385,18.64964886,147.85,147.81,6.76514587]
[1751641972546,18.64964886,147.85,147.81,14.16302553]
[1751641973009,18.64964886,147.85,147.81,7.39787966]
[1751641973160,26.72407273,147.85,147.8,14.16366953]
[1751641973471,18.64964886,147.83,147.8,14.16366953]
[1751641973844,18.64964886,147.83,147.81,7.39787966]
[1751641974047,26.04752852,147.85,147.81,7.39787966]
[1751641974559,18.64964886,147.85,147.81,7.39787966]
[1751641975381,33.48780624,147.85,147.8,14.16366953]
[1751641975556,18.64964886,147.83,147.79,6.76607551]
[1751641975762,26.04752852,147.83,147.79,14.16395517]
[1751641976065,7.44027772,147.85,147.78,14.14668928]
[1751641976066,7.39787966,147.82,147.78,14.14668928]
[1751641976277,7.39787966,147.82,147.78,21.54456894]
[1751641976885,26.04752852,147.81,147.78,0.1]
[1751641977219,18.64964886,147.79,147.78,0.1]
[1751641978420,26.0,147.81,147.78,7.49787966]
[1751641978583,18.64964886,147.8,147.78,0.1]
[1751641979033,26.0,147.81,147.79,7.39787966]
[1751641979212,26.0,147.8,147.79,7.39787966]
[1751641979387,18.64964886,147.82,147.79,6.76635766]
[1751641979591,26.0,147.82,147.8,7.39787966]
[1751641979815,26.0,147.81,147.79,6.76635766]
[1751641980009,26.0,147.81,147.8,7.39787966]
[1751641981115,26.0,147.81,147.79,6.76635766]
[1751641981517,26.0,147.81,147.8,7.39787966]
[1751641982392,18.64964886,147.84,147.8,65.69787966]
[1751641982734,18.64964886,147.84,147.82,7.39787966]
[1751641983041,18.64964886,147.86,147.83,7.39787966]
[1751641983230,18.64964886,147.86,147.85,7.39787966]
[1751641983389,2.27264421,147.91,147.85,14.16106765]
[1751641983585,26.0,147.88,147.87,7.39787966]
[1751641983825,44.64964886,147.88,147.87,7.39787966]
[1751641984129,44.64964886,147.88,147.86,7.39787966]
[1751641984357,26.04752852,147.88,147.84,7.39787966]
[1751641984647,44.64964886,147.88,147.83,7.39787966]
[1751641984850,52.04752852,147.88,147.83,7.39787966]
[1751641985514,6.76269696,147.87,147.83,7.39787966]
[1751641985710,6.76269696,147.87,147.79,24.19522087]
[1751641985711,18.64964886,147.85,147.79,7.28]
[1751641985935,18.64964886,147.83,147.82,7.39787966]
[1751641986640,44.64964886,147.86,147.82,7.39787966]
[1751641986830,44.64964886,147.86,147.83,7.39787966]
[1751641987240,1.5961,147.91,147.85,7.39787966]
[1751641987451,1.5961,147.91,147.88,7.39787966]
[1751641987736,44.64964886,147.88,147.86,7.39787966]
[1751641987935,44.64964886,147.88,147.85,7.39787966]
[1751641988728,44.64964886,147.88,147.83,6.7643615]
[1751641988729,44.64964886,147.88,147.84,7.39787966]
[1751641989417,44.64964886,147.88,147.85,7.39787966]
[1751641992120,44.64964886,147.88,147.85,14.16147763]
[1751641992538,44.64964886,147.88,147.86,7.39787966]
[1751641992738,44.64964886,147.88,147.87,7.39787966]
[1751641993145,44.64964886,147.88,147.85,7.39787966]
[1751641993358,44.64964886,147.88,147.84,14.16178228]
[1751641993633,44.64964886,147.88,147.85,7.39787966]
[1751641995149,44.64964886,147.88,147.86,7.39787966]
[1751641995329,51.41189321,147.88,147.86,7.39787966]
[1751641995566,51.41189321,147.88,147.84,7.39787966]
[1751641995567,58.80977287,147.88,147.84,7.39787966]
[1751641995842,51.41189321,147.88,147.85,7.39787966]
[1751641996229,18.64964886,147.86,147.82,7.39787966]
[1751641996428,44.64964886,147.86,147.82,7.39787966]
[1751641996831,44.64964886,147.86,147.8,65.06569322]
[1751641997033,44.64964886,147.86,147.82,7.39787966]
[1751641997238,51.41290845,147.86,147.82,7.39787966]
[1751641997961,44.64964886,147.84,147.83,7.39787966]
[1751641998324,18.64964886,147.88,147.83,7.39787966]
[1751641998546,26.0,147.86,147.81,6.76523638]
[1751641998737,26.0,147.86,147.85,7.39787966]
[1751641998925,26.0,147.86,147.81,81.97884168]
[1751641999238,44.64964886,147.86,147.85,7.39787966]
[1751642000254,44.64964886,147.86,147.83,6.76433905]
[1751642000433,18.64964886,147.85,147.83,7.39787966]
[1751642000751,18.64964886,147.85,147.82,7.39787966]
[1751642001054,18.64964886,147.85,147.81,7.39787966]
[1751642001055,19.32619307,147.85,147.81,7.39787966]
[1751642001229,26.08997049,147.85,147.81,7.39787966]
[1751642001631,18.64964886,147.85,147.83,7.39787966]
[1751642002550,18.64964886,147.85,147.82,7.39787966]
[1751642002756,32.81121279,147.85,147.81,7.39787966]
[1751642002957,0.67654421,147.84,147.81,7.39787966]
[1751642003338,26.08987734,147.85,147.81,7.39787966]
[1751642003545,26.08987734,147.85,147.82,7.39787966]
[1751642004462,18.64964886,147.85,147.83,7.39787966]
[1751642004639,18.64964886,147.85,147.84,7.39787966]
[1751642005337,44.64964886,147.85,147.84,7.39787966]
[1751642005547,26.0,147.85,147.84,14.16194892]
[1751642005858,26.0,147.86,147.84,14.16194892]
[1751642006060,26.0,147.86,147.85,7.39787966]
[1751642006468,2.27264421,147.91,147.85,7.39787966]
[1751642006630,0.2,147.92,147.9,7.39787966]
[1751642006830,0.2,147.92,147.91,7.39787966]
[1751642007372,0.2,147.92,147.91,14.15874775]
[1751642007664,0.2,147.92,147.91,7.39787966]
[1751642008544,0.2,147.92,147.9,7.39787966]
[1751642008741,18.64964886,147.91,147.89,7.39787966]
[1751642008935,7.39787966,147.9,147.81,6.112]
[1751642009138,26.04752852,147.88,147.81,6.112]
[1751642009450,18.64964886,147.86,147.84,7.39787966]
[1751642010363,18.64964886,147.86,147.82,6.76478626]
[1751642010534,18.64964886,147.86,147.83,7.39787966]
[1751642011742,18.64964886,147.86,147.84,7.39787966]
[1751642011943,14.16031714,147.88,147.84,7.39787966]
[1751642012142,14.83686135,147.88,147.84,7.39787966]
[1751642012344,18.64964886,147.87,147.84,7.39787966]
[1751642013262,18.64964886,147.87,147.83,7.39787966]
[1751642013647,18.64964886,147.87,147.84,7.39787966]
[1751642014969,25.41240749,147.87,147.82,6.76478626]
[1751642015171,18.64964886,147.86,147.83,7.39787966]
[1751642015466,14.16063829,147.87,147.82,6.76478626]
[1751642015647,14.8371825,147.87,147.83,7.39787966]
[1751642015842,18.64964886,147.86,147.82,6.76478626]
[1751642016157,18.64964886,147.86,147.83,7.39787966]
[1751642016366,32.81086911,147.86,147.8,65.58]
[1751642016560,25.41298945,147.86,147.81,7.39787966]
[1751642016884,18.64964886,147.86,147.83,7.39787966]
[1751642017039,18.64964886,147.86,147.84,7.39787966]
[1751642017651,18.64964886,147.86,147.83,7.39787966]
[1751642017853,33.48728837,147.86,147.81,7.39787966]
[1751642018087,26.04752852,147.84,147.8,7.39787966]
[1751642018273,0.67654421,147.84,147.79,65.69787966]
[1751642018473,14.83890488,147.84,147.79,65.69787966]
[1751642018861,14.16236067,147.84,147.8,7.39787966]
[1751642019176,6.76448101,147.84,147.8,7.39787966]
[1751642019661,14.16236067,147.84,147.8,7.39787966]
[1751642019854,14.83821301,147.85,147.81,7.39787966]
[1751642020164,8.07442387,147.84,147.79,58.3]
[1751642020376,8.07442387,147.84,147.8,7.39787966]
[1751642020556,8.07442387,147.84,147.79,65.69787966]
[1751642021368,26.04752852,147.83,147.79,58.3]
[1751642021578,26.04752852,147.83,147.79,65.69787966]
[1751642021965,6.76498444,147.82,147.79,65.69787966]
[1751642022141,6.76498444,147.82,147.79,58.3]
[1751642022349,25.41436392,147.83,147.79,58.3]
[1751642022561,25.41436392,147.83,147.79,65.69787966]
[1751642023245,32.81224358,147.83,147.79,58.3]
[1751642023440,32.81224358,147.83,147.79,65.69787966]
[1751642023860,26.04752852,147.81,147.78,0.1]
[1751642024065,32.81323361,147.81,147.78,0.1]
[1751642024279,18.64964886,147.81,147.78,7.49787966]
[1751642024453,25.41512797,147.81,147.78,7.49787966]
[1751642024655,25.41512797,147.81,147.78,0.1]
[1751642024977,26.09167218,147.81,147.78,0.1]
[1751642025161,25.41512797,147.81,147.78,0.1]
[1751642025662,18.64964886,147.81,147.78,0.1]
[1751642025862,18.64964886,147.81,147.78,7.49787966]
[1751642026059,25.41510176,147.81,147.78,7.49787966]
[1751642026377,26.04752852,147.79,147.78,0.1]
[1751642026562,18.64964886,147.79,147.78,0.1]
[1751642027385,26.0,147.8,147.78,7.49787966]
[1751642027554,7.44114996,147.83,147.79,7.39787966]
[1751642027750,18.64964886,147.81,147.79,7.39787966]
[1751642028266,18.64964886,147.81,147.78,0.1]
[1751642028468,18.64964886,147.81,147.78,7.49787966]
[1751642030371,26.0,147.82,147.78,14.26465809]
[1751642030584,26.0,147.81,147.8,7.39787966]
[1751642031359,18.64964886,147.83,147.8,7.39787966]
[1751642031560,51.41422514,147.83,147.8,7.39787966]
[1751642032154,25.41422514,147.83,147.8,7.39787966]
[1751642032354,51.41422514,147.83,147.8,7.39787966]
[1751642032787,44.64964886,147.83,147.8,7.39787966]
[1751642033108,51.41417582,147.83,147.8,7.39787966]
[1751642033285,44.64964886,147.83,147.78,65.16668121]
[1751642033583,44.64964886,147.83,147.8,7.39787966]
[1751642033980,26.0,147.83,147.81,7.39787966]
[1751642036482,26.0,147.83,147.82,7.39787966]
[1751642037167,26.0,147.83,147.8,6.76579839]
[1751642037368,26.0,147.83,147.82,7.39787966]
[1751642037964,26.0,147.83,147.8,6.76579839]
[1751642038168,26.0,147.83,147.81,7.39787966]
[1751642041182,26.04752852,147.82,147.8,58.3]
[1751642041386,32.81264638,147.82,147.8,58.3]
[1751642041590,25.41476672,147.82,147.8,58.3]
[1751642041794,18.64964886,147.82,147.8,58.3]
[1751642042656,40.16255621,147.83,147.8,58.3]
[1751642042862,32.76467655,147.83,147.8,65.69787966]
[1751642043259,32.76467655,147.83,147.8,58.3]
[1751642043482,32.81297064,147.81,147.8,58.3]
[1751642043996,32.81297064,147.81,147.78,0.1]
[1751642044566,25.41509098,147.81,147.78,0.1]
[1751642046271,18.64964886,147.81,147.78,0.1]